[Event "Early-Titled-Tuesday-Blitz-January-16-2024"]
[Site "Chess.com"]
[Date "2024.01.16"]
[Round "9"]
[White "GMAkobianSTL"]
[Black "YurasovMat-2012"]
[Result "0-1"]
[WhiteElo "2695"]
[BlackElo "2615"]
[TimeControl "180+1"]
[EndTime "9:47:27 PST"]
[Termination "YurasovMat-2012 won by resignation"]

1. d4 {[%clk 0:02:59.3]} 1... d5 {[%clk 0:02:59.5]} 2. c4 {[%clk 0:02:58]} 2...
c6 {[%clk 0:02:59.3]} 3. cxd5 {[%clk 0:02:57.8]} 3... cxd5 {[%clk 0:02:59.1]} 4.
Nf3 {[%clk 0:02:58.4]} 4... Nf6 {[%clk 0:02:57.1]} 5. Nc3 {[%clk 0:02:59]} 5...
Nc6 {[%clk 0:02:56.3]} 6. Bf4 {[%clk 0:02:58.9]} 6... Bf5 {[%clk 0:02:53.9]} 7.
Qb3 {[%clk 0:02:49.7]} 7... Na5 {[%clk 0:02:53.3]} 8. Qa4+ {[%clk 0:02:49.5]}
8... Bd7 {[%clk 0:02:52.6]} 9. Qc2 {[%clk 0:02:49.1]} 9... e6 {[%clk 0:02:52.8]}
10. e3 {[%clk 0:02:48]} 10... Rc8 {[%clk 0:02:52.5]} 11. Bd3 {[%clk 0:02:46.9]}
11... Be7 {[%clk 0:02:48.6]} 12. Ne5 {[%clk 0:02:42.5]} 12... O-O {[%clk
0:02:47.6]} 13. O-O {[%clk 0:02:39.3]} 13... b5 {[%clk 0:02:44.9]} 14. Qe2
{[%clk 0:02:36]} 14... a6 {[%clk 0:02:32.5]} 15. Rac1 {[%clk 0:02:31.4]} 15...
Nc4 {[%clk 0:02:32.3]} 16. b3 {[%clk 0:02:20.2]} 16... Nxe5 {[%clk 0:02:25.6]}
17. dxe5 {[%clk 0:02:04.6]} 17... Ne8 {[%clk 0:02:24.9]} 18. Bb1 {[%clk
0:02:03.1]} 18... f6 {[%clk 0:02:21.7]} 19. Qd3 {[%clk 0:01:45.7]} 19... g6
{[%clk 0:02:19.1]} 20. Nxd5 {[%clk 0:01:39.9]} 20... exd5 {[%clk 0:02:11.2]} 21.
Qxd5+ {[%clk 0:01:38.8]} 21... Kg7 {[%clk 0:02:10.8]} 22. e6 {[%clk 0:01:38.4]}
22... Bc6 {[%clk 0:02:03.5]} 23. Qxd8 {[%clk 0:01:27.2]} 23... Bxd8 {[%clk
0:02:02.9]} 24. Rfd1 {[%clk 0:01:27.1]} 24... Be7 {[%clk 0:02:02.9]} 25. e4
{[%clk 0:01:12.8]} 25... Kg8 {[%clk 0:01:55.4]} 26. Bh6 {[%clk 0:00:33.6]} 26...
Ng7 {[%clk 0:01:54]} 27. f4 {[%clk 0:00:33.7]} 27... f5 {[%clk 0:01:39.3]} 28.
exf5 {[%clk 0:00:19.7]} 28... gxf5 {[%clk 0:01:40.2]} 29. Rd2 {[%clk 0:00:18.5]}
29... Be4 {[%clk 0:01:27]} 30. Rxc8 {[%clk 0:00:17.6]} 30... Rxc8 {[%clk
0:01:27.3]} 31. Bxe4 {[%clk 0:00:16.9]} 31... fxe4 {[%clk 0:01:27.2]} 32. Rd7
{[%clk 0:00:17]} 32... Nf5 {[%clk 0:01:23.3]} 33. Bg5 {[%clk 0:00:13.5]} 33...
Bxg5 {[%clk 0:01:23.2]} 34. fxg5 {[%clk 0:00:13.8]} 34... Re8 {[%clk 0:01:23.4]}
35. Rd5 {[%clk 0:00:13]} 35... Ng7 {[%clk 0:01:23]} 36. Rd6 {[%clk 0:00:11.2]}
36... Rxe6 {[%clk 0:01:21.9]} 37. Rxe6 {[%clk 0:00:11.5]} 37... Nxe6 {[%clk
0:01:21.9]} 38. h4 {[%clk 0:00:12.4]} 38... Kf7 {[%clk 0:01:21]} 39. Kf2 {[%clk
0:00:12.7]} 39... Kg6 {[%clk 0:01:20.8]} 40. Ke3 {[%clk 0:00:13.1]} 40... Kf5
{[%clk 0:01:21.3]} 41. b4 {[%clk 0:00:13]} 41... Ke5 {[%clk 0:01:21.4]} 42. g4
{[%clk 0:00:12.5]} 42... Nf4 {[%clk 0:01:20]} 43. h5 {[%clk 0:00:12.9]} 43...
Ne6 {[%clk 0:01:19.4]} 44. g6 {[%clk 0:00:11.1]} 44... hxg6 {[%clk 0:01:19]} 45.
hxg6 {[%clk 0:00:11]} 45... Ng7 {[%clk 0:01:19]} 46. a3 {[%clk 0:00:10.6]} 46...
Ne6 {[%clk 0:01:17.9]} 47. Kf2 {[%clk 0:00:07.7]} 47... Kf4 {[%clk 0:01:15.4]}
48. Ke2 {[%clk 0:00:07.5]} 48... Kxg4 {[%clk 0:01:15.5]} 49. Ke3 {[%clk
0:00:08.3]} 49... Kf5 {[%clk 0:01:15.8]} 0-1

[Event "Early-Titled-Tuesday-Blitz-January-16-2024"]
[Site "Chess.com"]
[Date "2024.01.16"]
[Round "9"]
[White "Licancabur"]
[Black "TregubovP"]
[Result "0-1"]
[WhiteElo "2512"]
[BlackElo "2680"]
[TimeControl "180+1"]
[EndTime "9:47:30 PST"]
[Termination "TregubovP won on time"]

1. d4 {[%clk 0:03:00.9]} 1... Nf6 {[%clk 0:02:59.1]} 2. Bg5 {[%clk 0:02:59.7]}
2... e6 {[%clk 0:02:58.4]} 3. e4 {[%clk 0:02:59.1]} 3... h6 {[%clk 0:02:58.8]}
4. Bxf6 {[%clk 0:02:58.1]} 4... Qxf6 {[%clk 0:02:59.3]} 5. c3 {[%clk 0:02:56.8]}
5... d6 {[%clk 0:02:59.1]} 6. Bd3 {[%clk 0:02:53.7]} 6... g6 {[%clk 0:02:59.6]}
7. Ne2 {[%clk 0:02:50.9]} 7... Bg7 {[%clk 0:02:59.3]} 8. O-O {[%clk 0:02:50.5]}
8... e5 {[%clk 0:02:59.7]} 9. f4 {[%clk 0:02:50]} 9... Qe7 {[%clk 0:02:59.8]}
10. f5 {[%clk 0:02:30.6]} 10... O-O {[%clk 0:02:58.3]} 11. Nd2 {[%clk 0:02:29]}
11... Nd7 {[%clk 0:02:55.6]} 12. Qe1 {[%clk 0:02:09.8]} 12... exd4 {[%clk
0:02:39.8]} 13. cxd4 {[%clk 0:02:08.6]} 13... c5 {[%clk 0:02:40]} 14. Qf2 {[%clk
0:01:54.9]} 14... cxd4 {[%clk 0:01:54.6]} 15. Nc4 {[%clk 0:01:53.7]} 15... Nc5
{[%clk 0:01:49.1]} 16. Rad1 {[%clk 0:01:27.6]} 16... Nxd3 {[%clk 0:01:33.7]} 17.
Rxd3 {[%clk 0:01:26.6]} 17... Qxe4 {[%clk 0:01:34.2]} 18. Rxd4 {[%clk 0:00:44]}
18... Bxd4 {[%clk 0:01:28.9]} 19. Nxd4 {[%clk 0:00:44.2]} 19... Bxf5 {[%clk
0:00:59.8]} 20. Nxd6 {[%clk 0:00:42.3]} 20... Qe5 {[%clk 0:00:59.1]} 21. N4xf5
{[%clk 0:00:30.7]} 21... gxf5 {[%clk 0:00:59]} 22. Nxf5 {[%clk 0:00:29.4]} 22...
Kh7 {[%clk 0:00:41.4]} 23. Qh4 {[%clk 0:00:27.3]} 23... Qe6 {[%clk 0:00:40.7]}
24. Ne7 {[%clk 0:00:19.6]} 24... Rae8 {[%clk 0:00:31.6]} 25. Rf6 {[%clk
0:00:17.6]} 25... Qe3+ {[%clk 0:00:31.1]} 26. Kf1 {[%clk 0:00:11.4]} 26... Rxe7
{[%clk 0:00:27.4]} 0-1

[Event "Early-Titled-Tuesday-Blitz-January-16-2024"]
[Site "Chess.com"]
[Date "2024.01.16"]
[Round "9"]
[White "MokshAD1603"]
[Black "DeArron_Fox"]
[Result "1-0"]
[WhiteElo "2594"]
[BlackElo "2416"]
[TimeControl "180+1"]
[EndTime "9:47:31 PST"]
[Termination "MokshAD1603 won on time"]

1. d4 {[%clk 0:02:53.5]} 1... d5 {[%clk 0:02:45.1]} 2. Bf4 {[%clk 0:02:52.9]}
2... Nf6 {[%clk 0:02:44.5]} 3. e3 {[%clk 0:02:52.3]} 3... c5 {[%clk 0:02:42.6]}
4. Nf3 {[%clk 0:02:51.8]} 4... Nc6 {[%clk 0:02:41.6]} 5. Nbd2 {[%clk 0:02:49.5]}
5... Bg4 {[%clk 0:02:39.8]} 6. h3 {[%clk 0:02:45.6]} 6... Bh5 {[%clk 0:02:27.3]}
7. Be2 {[%clk 0:02:39.9]} 7... e6 {[%clk 0:02:27]} 8. c3 {[%clk 0:02:40]} 8...
cxd4 {[%clk 0:02:27]} 9. exd4 {[%clk 0:02:40]} 9... Bd6 {[%clk 0:02:26.4]} 10.
Ne5 {[%clk 0:02:40.3]} 10... Bxe2 {[%clk 0:02:21.1]} 11. Qxe2 {[%clk 0:02:41.2]}
11... Qc7 {[%clk 0:02:21.4]} 12. O-O {[%clk 0:02:40.8]} 12... O-O {[%clk
0:02:14.2]} 13. Rfe1 {[%clk 0:02:38.8]} 13... Nd7 {[%clk 0:02:05.2]} 14. Ndf3
{[%clk 0:02:33.8]} 14... Rae8 {[%clk 0:02:00.9]} 15. Bg3 {[%clk 0:02:24.9]}
15... f6 {[%clk 0:01:57.9]} 16. Nxc6 {[%clk 0:02:01.2]} 16... bxc6 {[%clk
0:01:56.9]} 17. Bxd6 {[%clk 0:02:00]} 17... Qxd6 {[%clk 0:01:57.8]} 18. Qa6
{[%clk 0:01:59.3]} 18... e5 {[%clk 0:01:22.7]} 19. Qxa7 {[%clk 0:01:53.6]} 19...
e4 {[%clk 0:01:12.6]} 20. Nh4 {[%clk 0:01:47.6]} 20... Ra8 {[%clk 0:00:58.3]}
21. Qb7 {[%clk 0:01:47]} 21... Rfb8 {[%clk 0:00:51.9]} 22. Nf5 {[%clk
0:01:46.9]} 22... Qe6 {[%clk 0:00:31.8]} 23. Qc7 {[%clk 0:01:46.8]} 23... Qxf5
{[%clk 0:00:29.7]} 24. Qxc6 {[%clk 0:01:47.3]} 24... h5 {[%clk 0:00:18.4]} 25.
a4 {[%clk 0:01:45.8]} 25... Rc8 {[%clk 0:00:12]} 26. Qd6 {[%clk 0:01:45.1]}
26... Rab8 {[%clk 0:00:09.9]} 27. Re2 {[%clk 0:01:37.1]} 27... Rb6 {[%clk
0:00:07.4]} 28. Qg3 {[%clk 0:01:37.1]} 28... Rbc6 {[%clk 0:00:03.2]} 29. a5
{[%clk 0:01:36.9]} 29... Qe6 {[%clk 0:00:03]} 30. Qh4 {[%clk 0:01:33.6]} 30...
g6 {[%clk 0:00:02]} 31. f3 {[%clk 0:01:29.7]} 31... Qf5 {[%clk 0:00:01.5]} 32.
fxe4 {[%clk 0:01:29.6]} 32... dxe4 {[%clk 0:00:02.4]} 33. Qxe4 {[%clk
0:01:26.7]} 33... Qxe4 {[%clk 0:00:02.4]} 34. Rxe4 {[%clk 0:01:27.6]} 34... Ra8
{[%clk 0:00:02.4]} 35. Re3 {[%clk 0:01:23.1]} 35... Nf8 {[%clk 0:00:02.5]} 36.
b4 {[%clk 0:01:23.4]} 36... Nd7 {[%clk 0:00:01.9]} 37. d5 {[%clk 0:01:23.3]}
37... Rd6 {[%clk 0:00:02.2]} 38. c4 {[%clk 0:01:23.8]} 38... Ne5 {[%clk
0:00:02.9]} 39. Rc3 {[%clk 0:01:22.2]} 39... Rc8 {[%clk 0:00:02.8]} 40. a6
{[%clk 0:01:22.1]} 40... Nxc4 {[%clk 0:00:02.3]} 41. a7 {[%clk 0:01:21.3]} 41...
Rdd8 {[%clk 0:00:02.1]} 42. Rxc4 {[%clk 0:01:18.4]} 42... Rxc4 {[%clk 0:00:03]}
43. a8=Q {[%clk 0:01:19.3]} 43... Rxa8 {[%clk 0:00:03.7]} 44. Rxa8+ {[%clk
0:01:19.7]} 44... Kg7 {[%clk 0:00:04.6]} 45. b5 {[%clk 0:01:18.8]} 45... Rd4
{[%clk 0:00:01.8]} 46. b6 {[%clk 0:01:18.5]} 1-0

[Event "Early-Titled-Tuesday-Blitz-January-16-2024"]
[Site "Chess.com"]
[Date "2024.01.16"]
[Round "9"]
[White "SpongeBob_03"]
[Black "toninhojit"]
[Result "0-1"]
[WhiteElo "2213"]
[BlackElo "2393"]
[TimeControl "180+1"]
[EndTime "9:47:39 PST"]
[Termination "toninhojit won on time"]

1. e4 {[%clk 0:03:00.9]} 1... e5 {[%clk 0:02:55.6]} 2. Nf3 {[%clk 0:02:53.1]}
2... Nc6 {[%clk 0:02:55.9]} 3. Bc4 {[%clk 0:02:52.4]} 3... Nf6 {[%clk
0:02:55.7]} 4. d3 {[%clk 0:02:52.2]} 4... Bc5 {[%clk 0:02:54.8]} 5. c3 {[%clk
0:02:52.4]} 5... h6 {[%clk 0:02:50.3]} 6. h3 {[%clk 0:02:51]} 6... d6 {[%clk
0:02:50.6]} 7. Bb3 {[%clk 0:02:51.1]} 7... O-O {[%clk 0:02:47.1]} 8. Bc2 {[%clk
0:02:49.2]} 8... d5 {[%clk 0:02:44.3]} 9. Qe2 {[%clk 0:02:44.3]} 9... a5 {[%clk
0:02:40.7]} 10. Nbd2 {[%clk 0:02:40.6]} 10... a4 {[%clk 0:02:38.9]} 11. O-O
{[%clk 0:02:30.7]} 11... Re8 {[%clk 0:02:38]} 12. Rd1 {[%clk 0:02:30.4]} 12...
d4 {[%clk 0:02:37.9]} 13. Nf1 {[%clk 0:02:22.3]} 13... a3 {[%clk 0:02:35.7]} 14.
Ng3 {[%clk 0:02:12.3]} 14... axb2 {[%clk 0:02:31.1]} 15. Bxb2 {[%clk 0:02:13.2]}
15... dxc3 {[%clk 0:02:32]} 16. Bxc3 {[%clk 0:02:12.5]} 16... Nd4 {[%clk
0:02:32.7]} 17. Bxd4 {[%clk 0:01:59.9]} 17... Bxd4 {[%clk 0:02:33.6]} 18. Nxd4
{[%clk 0:01:56.4]} 18... Qxd4 {[%clk 0:02:34.5]} 19. Qf3 {[%clk 0:01:43.2]}
19... Be6 {[%clk 0:02:31.5]} 20. Nf5 {[%clk 0:01:30.9]} 20... Bxf5 {[%clk
0:02:31.8]} 21. Qxf5 {[%clk 0:01:31.8]} 21... Qd7 {[%clk 0:02:22.2]} 22. Qxd7
{[%clk 0:01:28.8]} 22... Nxd7 {[%clk 0:02:21]} 23. d4 {[%clk 0:01:28.2]} 23...
exd4 {[%clk 0:02:16.5]} 24. Rxd4 {[%clk 0:01:29.1]} 24... Nc5 {[%clk 0:02:14.6]}
25. a4 {[%clk 0:01:20.7]} 25... Ra5 {[%clk 0:02:12.1]} 26. Rad1 {[%clk
0:01:10.9]} 26... g6 {[%clk 0:02:08.9]} 27. Rd8 {[%clk 0:00:56.9]} 27... Rxd8
{[%clk 0:02:09.1]} 28. Rxd8+ {[%clk 0:00:57.8]} 28... Kg7 {[%clk 0:02:10]} 29.
Rd4 {[%clk 0:00:57.8]} 29... Kf6 {[%clk 0:02:06.9]} 30. f4 {[%clk 0:00:57.2]}
30... Ke7 {[%clk 0:02:07.1]} 31. e5 {[%clk 0:00:54]} 31... Ne6 {[%clk
0:02:02.9]} 32. Rb4 {[%clk 0:00:44.8]} 32... b6 {[%clk 0:02:01.1]} 33. g4 {[%clk
0:00:41.4]} 33... g5 {[%clk 0:01:52.9]} 34. f5 {[%clk 0:00:18.3]} 34... Nf4
{[%clk 0:01:52.7]} 35. Re4 {[%clk 0:00:11.4]} 35... Nxh3+ {[%clk 0:01:47.8]} 36.
Kh2 {[%clk 0:00:10.6]} 36... Nf4 {[%clk 0:01:48.7]} 37. Bb3 {[%clk 0:00:09.6]}
37... Rc5 {[%clk 0:01:42.5]} 38. f6+ {[%clk 0:00:09.8]} 38... Ke8 {[%clk
0:01:40.9]} 39. e6 {[%clk 0:00:10]} 39... fxe6 {[%clk 0:01:40.8]} 40. Bxe6
{[%clk 0:00:10.9]} 40... Nxe6 {[%clk 0:01:38.8]} 41. Rxe6+ {[%clk 0:00:11.5]}
41... Kf7 {[%clk 0:01:39.4]} 42. Re4 {[%clk 0:00:06.3]} 42... Kxf6 {[%clk
0:01:39.6]} 43. Kg3 {[%clk 0:00:06.1]} 43... Rc3+ {[%clk 0:01:39.3]} 44. Kf2
{[%clk 0:00:06.6]} 44... c6 {[%clk 0:01:32.6]} 45. Ke2 {[%clk 0:00:05.6]} 45...
b5 {[%clk 0:01:32.8]} 46. axb5 {[%clk 0:00:05.4]} 46... cxb5 {[%clk 0:01:33.7]}
47. Kd2 {[%clk 0:00:05.5]} 47... Rc4 {[%clk 0:01:32.9]} 48. Re8 {[%clk
0:00:02.4]} 48... Rxg4 {[%clk 0:01:32.5]} 49. Rb8 {[%clk 0:00:03.2]} 49... b4
{[%clk 0:01:32.6]} 50. Kc2 {[%clk 0:00:03]} 50... Kg6 {[%clk 0:01:31.4]} 51. Kb3
{[%clk 0:00:03.4]} 51... Kh5 {[%clk 0:01:31.9]} 52. Rb5 {[%clk 0:00:02.4]} 52...
Kh4 {[%clk 0:01:31.8]} 53. Rb6 {[%clk 0:00:02.3]} 53... h5 {[%clk 0:01:32.1]}
0-1

[Event "Early-Titled-Tuesday-Blitz-January-16-2024"]
[Site "Chess.com"]
[Date "2024.01.16"]
[Round "9"]
[White "Zohid6"]
[Black "chito89"]
[Result "1-0"]
[WhiteElo "2839"]
[BlackElo "2930"]
[TimeControl "180+1"]
[EndTime "9:47:52 PST"]
[Termination "Zohid6 won by resignation"]

1. d4 {[%clk 0:02:59.7]} 1... d5 {[%clk 0:02:58.2]} 2. Nc3 {[%clk 0:02:59.1]}
2... Nf6 {[%clk 0:02:55.7]} 3. Bf4 {[%clk 0:02:58.7]} 3... a6 {[%clk 0:02:55.9]}
4. e3 {[%clk 0:02:58.7]} 4... b5 {[%clk 0:02:52]} 5. h4 {[%clk 0:02:58.1]} 5...
Nbd7 {[%clk 0:02:46.3]} 6. g4 {[%clk 0:02:57.3]} 6... b4 {[%clk 0:02:46.2]} 7.
Na4 {[%clk 0:02:49.1]} 7... e6 {[%clk 0:02:42.2]} 8. g5 {[%clk 0:02:48.6]} 8...
Ne4 {[%clk 0:02:41.4]} 9. Bg2 {[%clk 0:02:46.5]} 9... Bb7 {[%clk 0:02:32.2]} 10.
Ne2 {[%clk 0:02:40.6]} 10... Bc6 {[%clk 0:02:30.9]} 11. c3 {[%clk 0:02:40.4]}
11... Bb5 {[%clk 0:02:19.7]} 12. Rc1 {[%clk 0:02:37.4]} 12... Rc8 {[%clk
0:02:12.6]} 13. c4 {[%clk 0:02:31.9]} 13... Bc6 {[%clk 0:02:06.7]} 14. c5 {[%clk
0:02:32.4]} 14... Bb5 {[%clk 0:01:59.7]} 15. f3 {[%clk 0:02:20.8]} 15... e5
{[%clk 0:01:51.2]} 16. Bh2 {[%clk 0:02:20.2]} 16... Nxg5 {[%clk 0:01:50.1]} 17.
hxg5 {[%clk 0:02:18.5]} 17... Qxg5 {[%clk 0:01:51]} 18. Kf2 {[%clk 0:02:17.5]}
18... Be7 {[%clk 0:01:41.1]} 19. Bg3 {[%clk 0:02:17.3]} 19... Bf6 {[%clk
0:01:35.2]} 20. c6 {[%clk 0:02:08.7]} 20... Bxa4 {[%clk 0:01:27.5]} 21. cxd7+
{[%clk 0:02:03.1]} 21... Bxd7 {[%clk 0:01:26.8]} 22. dxe5 {[%clk 0:02:03.5]}
22... Be7 {[%clk 0:01:21.9]} 23. Qxd5 {[%clk 0:02:01.6]} 23... Rd8 {[%clk
0:01:15.6]} 24. Rxc7 {[%clk 0:01:47.5]} 24... Bb5 {[%clk 0:01:12.3]} 25. Qe4
{[%clk 0:01:14]} 25... Rd2 {[%clk 0:01:03.6]} 26. Rc8+ {[%clk 0:01:13.7]} 26...
Bd8 {[%clk 0:01:03.3]} 27. Bf1 {[%clk 0:01:13.3]} 27... Qe7 {[%clk 0:00:47.9]}
28. Bh4 {[%clk 0:01:08.1]} 28... g5 {[%clk 0:00:47.6]} 29. Bg3 {[%clk
0:01:03.8]} 29... h5 {[%clk 0:00:48.1]} 30. Ke1 {[%clk 0:00:47.9]} 30... Qd7
{[%clk 0:00:40.5]} 31. Nd4 {[%clk 0:00:39.1]} 31... Rxb2 {[%clk 0:00:24.7]} 32.
Bxb5 {[%clk 0:00:38.6]} 32... axb5 {[%clk 0:00:24.8]} 33. Rc6 {[%clk 0:00:32.7]}
33... h4 {[%clk 0:00:20.6]} 34. e6 {[%clk 0:00:30.9]} 1-0

[Event "Early-Titled-Tuesday-Blitz-January-16-2024"]
[Site "Chess.com"]
[Date "2024.01.16"]
[Round "9"]
[White "viktorskliarov"]
[Black "FMCASTE"]
[Result "1-0"]
[WhiteElo "2658"]
[BlackElo "2479"]
[TimeControl "180+1"]
[EndTime "9:47:55 PST"]
[Termination "viktorskliarov won by checkmate"]

1. e4 {[%clk 0:02:58.8]} 1... g6 {[%clk 0:02:57]} 2. d4 {[%clk 0:02:51]} 2...
Bg7 {[%clk 0:02:57.9]} 3. Nc3 {[%clk 0:02:50.8]} 3... d6 {[%clk 0:02:58.8]} 4.
Be3 {[%clk 0:02:50.7]} 4... a6 {[%clk 0:02:55.7]} 5. f3 {[%clk 0:02:50.5]} 5...
Nd7 {[%clk 0:02:53.2]} 6. g4 {[%clk 0:02:49.9]} 6... h6 {[%clk 0:02:52.9]} 7. h4
{[%clk 0:02:48.7]} 7... b5 {[%clk 0:02:53.1]} 8. Qd2 {[%clk 0:02:48.5]} 8... Bb7
{[%clk 0:02:52.7]} 9. Nd1 {[%clk 0:02:48.3]} 9... c5 {[%clk 0:02:50.9]} 10. c3
{[%clk 0:02:48.2]} 10... Qc7 {[%clk 0:02:46.7]} 11. Bd3 {[%clk 0:02:37.3]} 11...
Ngf6 {[%clk 0:02:40.6]} 12. Nf2 {[%clk 0:02:33.8]} 12... e5 {[%clk 0:02:37.1]}
13. d5 {[%clk 0:02:30.7]} 13... c4 {[%clk 0:02:36]} 14. Bf1 {[%clk 0:02:11.9]}
14... h5 {[%clk 0:02:35.7]} 15. g5 {[%clk 0:02:09]} 15... Ng8 {[%clk 0:02:32.1]}
16. Bh3 {[%clk 0:02:04.6]} 16... Ne7 {[%clk 0:02:30.7]} 17. Ne2 {[%clk
0:02:04.2]} 17... a5 {[%clk 0:02:27.4]} 18. Ng3 {[%clk 0:01:43.2]} 18... Nc5
{[%clk 0:02:24.6]} 19. O-O {[%clk 0:01:33.6]} 19... Ba6 {[%clk 0:02:22.9]} 20.
f4 {[%clk 0:01:27.5]} 20... exf4 {[%clk 0:02:20.4]} 21. Bxf4 {[%clk 0:01:28.4]}
21... O-O {[%clk 0:02:19]} 22. Rae1 {[%clk 0:01:11]} 22... Rad8 {[%clk
0:02:17.7]} 23. Qe2 {[%clk 0:00:53.6]} 23... b4 {[%clk 0:02:14.7]} 24. Nxh5
{[%clk 0:00:53.4]} 24... gxh5 {[%clk 0:02:09.3]} 25. Qxh5 {[%clk 0:00:53.3]}
25... Ng6 {[%clk 0:02:09.8]} 26. Bf5 {[%clk 0:00:49.2]} 26... Nd3 {[%clk
0:02:00.4]} 27. Ng4 {[%clk 0:00:33.9]} 27... Ndxf4 {[%clk 0:01:49.8]} 28. Rxf4
{[%clk 0:00:32]} 28... Qa7+ {[%clk 0:01:44.3]} 29. Kh2 {[%clk 0:00:16.8]} 29...
Rfe8 {[%clk 0:01:37.9]} 30. Nf6+ {[%clk 0:00:12.2]} 30... Kf8 {[%clk 0:01:27]}
31. Bxg6 {[%clk 0:00:06.8]} 31... Re7 {[%clk 0:01:10.7]} 32. Nh7+ {[%clk
0:00:04.9]} 32... Kg8 {[%clk 0:01:04.5]} 33. Nf6+ {[%clk 0:00:04.9]} 33... Kf8
{[%clk 0:01:04.5]} 34. Qh7 {[%clk 0:00:03.9]} 34... Re5 {[%clk 0:00:23.2]} 35.
Qg8+ {[%clk 0:00:03.6]} 35... Ke7 {[%clk 0:00:23.5]} 36. Qxf7# {[%clk
0:00:04.5]} 1-0

[Event "Early-Titled-Tuesday-Blitz-January-16-2024"]
[Site "Chess.com"]
[Date "2024.01.16"]
[Round "9"]
[White "kritipatel"]
[Black "tigurones"]
[Result "0-1"]
[WhiteElo "2181"]
[BlackElo "2366"]
[TimeControl "180+1"]
[EndTime "9:47:55 PST"]
[Termination "tigurones won by resignation"]

1. e4 {[%clk 0:02:56.4]} 1... c5 {[%clk 0:02:59.3]} 2. c3 {[%clk 0:02:55.4]}
2... Nf6 {[%clk 0:02:58.1]} 3. e5 {[%clk 0:02:54.8]} 3... Nd5 {[%clk 0:02:58.8]}
4. d4 {[%clk 0:02:54.8]} 4... cxd4 {[%clk 0:02:58.8]} 5. Nf3 {[%clk 0:02:55]}
5... Nc6 {[%clk 0:02:58.1]} 6. Bc4 {[%clk 0:02:55.6]} 6... Nb6 {[%clk
0:02:57.8]} 7. Bb3 {[%clk 0:02:55.3]} 7... e6 {[%clk 0:02:54.3]} 8. O-O {[%clk
0:02:53.2]} 8... dxc3 {[%clk 0:02:45.7]} 9. Nxc3 {[%clk 0:02:51.3]} 9... d6
{[%clk 0:02:35]} 10. exd6 {[%clk 0:02:27.2]} 10... Bxd6 {[%clk 0:02:30.4]} 11.
Be3 {[%clk 0:02:26.3]} 11... O-O {[%clk 0:02:20.6]} 12. Qe2 {[%clk 0:02:17.6]}
12... Nd5 {[%clk 0:02:03.2]} 13. Rfd1 {[%clk 0:01:58.6]} 13... Nxc3 {[%clk
0:01:59]} 14. bxc3 {[%clk 0:01:59.5]} 14... Qc7 {[%clk 0:01:55]} 15. Bc2 {[%clk
0:01:51.3]} 15... e5 {[%clk 0:01:29.9]} 16. Bxh7+ {[%clk 0:01:09.2]} 16... Kxh7
{[%clk 0:01:30.8]} 17. Ng5+ {[%clk 0:01:08.9]} 17... Kg8 {[%clk 0:01:19.7]} 18.
Qh5 {[%clk 0:01:07.5]} 18... Bf5 {[%clk 0:01:07.6]} 19. Rd5 {[%clk 0:00:30]}
19... Bg6 {[%clk 0:01:00.3]} 20. Qh4 {[%clk 0:00:27.2]} 20... Be7 {[%clk
0:00:59]} 21. Rad1 {[%clk 0:00:24.6]} 21... Rad8 {[%clk 0:00:58]} 22. Rxd8
{[%clk 0:00:19.9]} 22... Rxd8 {[%clk 0:00:58.9]} 23. Rxd8+ {[%clk 0:00:19.8]}
23... Qxd8 {[%clk 0:00:58.5]} 24. h3 {[%clk 0:00:20.5]} 24... Bxg5 {[%clk
0:00:52.2]} 25. Bxg5 {[%clk 0:00:20.9]} 25... Qd1+ {[%clk 0:00:49.3]} 26. Kh2
{[%clk 0:00:20.7]} 26... Qd3 {[%clk 0:00:45.2]} 27. c4 {[%clk 0:00:18.8]} 27...
Qe4 {[%clk 0:00:41.6]} 28. Qg3 {[%clk 0:00:18.1]} 28... f6 {[%clk 0:00:40.9]}
29. Be3 {[%clk 0:00:18]} 29... Bf7 {[%clk 0:00:36]} 30. c5 {[%clk 0:00:17.6]}
30... Bxa2 {[%clk 0:00:33.9]} 31. Bd2 {[%clk 0:00:13.6]} 31... Bd5 {[%clk
0:00:32.9]} 32. f3 {[%clk 0:00:13.2]} 32... Qc2 {[%clk 0:00:30.9]} 33. Be1
{[%clk 0:00:13.1]} 33... Nd4 {[%clk 0:00:29.1]} 34. Qg4 {[%clk 0:00:13.1]} 34...
Nxf3+ {[%clk 0:00:25.4]} 35. Kg3 {[%clk 0:00:13.1]} 35... Nxe1 {[%clk 0:00:24]}
36. Qc8+ {[%clk 0:00:13.7]} 36... Kh7 {[%clk 0:00:24]} 0-1

[Event "Early-Titled-Tuesday-Blitz-January-16-2024"]
[Site "Chess.com"]
[Date "2024.01.16"]
[Round "9"]
[White "JimDiGrease"]
[Black "quvnoq_muxlis"]
[Result "1-0"]
[WhiteElo "2974"]
[BlackElo "2670"]
[TimeControl "180+1"]
[EndTime "9:47:56 PST"]
[Termination "JimDiGrease won by checkmate"]

1. d4 {[%clk 0:02:38.8]} 1... Nf6 {[%clk 0:02:58.1]} 2. c4 {[%clk 0:02:39.3]}
2... e6 {[%clk 0:02:58.6]} 3. Bf4 {[%clk 0:02:39.6]} 3... Bd6 {[%clk 0:02:58.4]}
4. Bg3 {[%clk 0:02:36.3]} 4... O-O {[%clk 0:02:57.9]} 5. Nc3 {[%clk 0:02:36.5]}
5... Bxg3 {[%clk 0:02:56.3]} 6. hxg3 {[%clk 0:02:37.4]} 6... d5 {[%clk
0:02:56.8]} 7. e3 {[%clk 0:02:38.2]} 7... h6 {[%clk 0:02:55.5]} 8. Nf3 {[%clk
0:02:38.1]} 8... a6 {[%clk 0:02:52.5]} 9. cxd5 {[%clk 0:02:15.8]} 9... exd5
{[%clk 0:02:53.4]} 10. Bd3 {[%clk 0:02:15.9]} 10... Re8 {[%clk 0:02:52.7]} 11.
O-O {[%clk 0:02:16.5]} 11... Nbd7 {[%clk 0:02:44.8]} 12. b4 {[%clk 0:02:16.4]}
12... Qe7 {[%clk 0:02:40.6]} 13. Qb3 {[%clk 0:02:13]} 13... a5 {[%clk
0:01:48.9]} 14. b5 {[%clk 0:01:51.6]} 14... Nb6 {[%clk 0:01:33.3]} 15. Rfc1
{[%clk 0:01:51.7]} 15... Be6 {[%clk 0:01:30.1]} 16. Ne2 {[%clk 0:01:44.1]} 16...
g5 {[%clk 0:01:13.4]} 17. Ne5 {[%clk 0:01:27.8]} 17... Rac8 {[%clk 0:01:03.9]}
18. Qc3 {[%clk 0:01:23.7]} 18... a4 {[%clk 0:00:58.3]} 19. Qb2 {[%clk
0:01:12.5]} 19... Nfd7 {[%clk 0:00:44.2]} 20. Rc2 {[%clk 0:01:12]} 20... Nxe5
{[%clk 0:00:18.6]} 21. dxe5 {[%clk 0:01:12.9]} 21... Bg4 {[%clk 0:00:13.6]} 22.
Rac1 {[%clk 0:00:59.7]} 22... Na8 {[%clk 0:00:09]} 23. f4 {[%clk 0:00:49.3]}
23... f6 {[%clk 0:00:03.6]} 24. Qd4 {[%clk 0:00:41.9]} 24... fxe5 {[%clk
0:00:02.3]} 25. Qxd5+ {[%clk 0:00:42.3]} 25... Qe6 {[%clk 0:00:02.5]} 26. Qxb7
{[%clk 0:00:38]} 26... Qe7 {[%clk 0:00:02.2]} 27. f5 {[%clk 0:00:33.5]} 27... e4
{[%clk 0:00:02.1]} 28. Bc4+ {[%clk 0:00:33]} 28... Kh8 {[%clk 0:00:02.2]} 29.
Nd4 {[%clk 0:00:33.4]} 29... Qf6 {[%clk 0:00:01.7]} 30. Be6 {[%clk 0:00:32.4]}
30... Rcd8 {[%clk 0:00:01.5]} 31. Rxc7 {[%clk 0:00:31.1]} 31... Nxc7 {[%clk
0:00:01.9]} 32. Rxc7 {[%clk 0:00:32]} 32... Rxe6 {[%clk 0:00:02.1]} 33. Nxe6
{[%clk 0:00:27.9]} 33... Re8 {[%clk 0:00:02.6]} 34. Rf7 {[%clk 0:00:23.6]} 34...
Qe5 {[%clk 0:00:01.9]} 35. Rh7+ {[%clk 0:00:20.2]} 35... Kg8 {[%clk 0:00:02.1]}
36. Qf7# {[%clk 0:00:20.8]} 1-0